fUST/lending_fUST_20240121
["ID","MTS","AMOUNT","RATE_DAILY","PERIOD"]
[312358983,1705827046452,-500.0,0.0003041,2]
[312358984,1705827046461,-500.0,0.0003041,2]
[312358985,1705827046470,-500.0,0.0003041,2]
[312358986,1705827046480,-501.1849965,0.0003041,2]
[312358987,1705827046489,-2063.46,0.0003041,2]
[312358988,1705827046498,-500.0,0.0003041,2]
[312358989,1705827046507,-500.0,0.0003041,2]
[312358990,1705827046516,-500.0,0.0003041,2]
[312358991,1705827046526,-500.0,0.0003041,2]
[312358992,1705827046535,-27910.08,0.0003041,2]
[312358993,1705827046545,-500.90581918,0.0003041,2]
[312358994,1705827046556,-500.0,0.0003041,2]
[312358995,1705827046565,-502.39019566,0.0003041,2]
[312358996,1705827046575,-500.0,0.0003041,2]
[312358997,1705827046585,-3282.85,0.0003041,2]
[312358998,1705827046595,-500.0,0.0003041,2]
[312358999,1705827046604,-500.0,0.0003041,2]
[312359000,1705827046613,-500.0,0.0003041,2]
[312359001,1705827046622,-500.0,0.0003041,2]
[312359002,1705827046632,-193.39740643,0.0003041,2]
[312359003,1705827046642,-500.0,0.0003041,2]
[312359004,1705827046652,-237.04279308,0.0003041,2]
[312359005,1705827046661,-500.0,0.0003041,2]
[312359006,1705827046671,-500.0,0.0003041,2]
[312359007,1705827046680,-569.94,0.0003041,2]
[312359008,1705827046689,-500.0,0.0003041,2]
[312359009,1705827046699,-506.82,0.0003041,2]
[312359010,1705827046708,-500.74589736,0.0003041,2]
[312359011,1705827046718,-500.0,0.0003041,2]
[312359012,1705827046727,-1268.28,0.0003041,2]
[312359013,1705827046736,-6497.1,0.0003041,2]
[312359014,1705827046745,-500.0,0.0003041,2]
[312359015,1705827046754,-502.52181998,0.0003041,2]
[312359016,1705827046764,-500.0,0.0003041,2]
[312359017,1705827046773,-2407.24,0.0003041,2]
[312359018,1705827046782,-500.0,0.0003041,2]
[312359019,1705827046791,-500.0,0.0003041,2]
[312359020,1705827046800,-500.0,0.0003041,2]
[312359021,1705827046809,-500.0,0.0003041,2]
[312359022,1705827046819,-500.0,0.0003041,2]
[312359023,1705827046828,-454.40419699,0.0003041,2]
[312359024,1705827046837,-6246.55,0.0003041,2]
[312359025,1705827046846,-500.0,0.0003041,2]
[312359026,1705827046855,-500.0,0.0003041,2]
[312359027,1705827046865,-500.0,0.0003041,2]
[312359028,1705827046874,-1357.4,0.0003041,2]
[312359029,1705827046883,-661.72,0.0003041,2]
[312359030,1705827046893,-735.3,0.0003041,2]
[312359031,1705827046902,-500.0,0.0003041,2]
[312359032,1705827046912,-504.10624072,0.0003041,2]
[312359033,1705827046921,-8300.67,0.0003041,2]
[312359034,1705827046930,-500.0,0.0003041,2]
[312359035,1705827046939,-500.76303151,0.0003041,2]
[312359036,1705827046949,-500.0,0.0003041,2]
[312359037,1705827046958,-500.0,0.0003041,2]
[312359038,1705827046967,-1502.85,0.0003041,2]
[312359039,1705827046976,-500.0,0.0003041,2]
[312359040,1705827046985,-500.0,0.0003041,2]
[312359041,1705827046994,-8991.16,0.0003041,2]
[312359042,1705827047003,-1228.33,0.0003041,2]
[312359043,1705827047013,-500.0,0.0003041,2]
[312359044,1705827047022,-1296.72,0.0003041,2]
[312359045,1705827047031,-500.0,0.0003041,2]
[312359046,1705827047040,-2208.26,0.0003041,2]
[312359047,1705827047050,-1000.0,0.0003041,2]
[312359048,1705827047058,-500.0,0.0003041,2]
[312359049,1705827047067,-500.0,0.0003041,2]
[312359050,1705827047077,-500.0,0.0003041,2]
[312359051,1705827047086,-500.0,0.0003041,2]
[312359052,1705827047095,-500.0,0.0003041,2]
[312359053,1705827047104,-833.1,0.0003041,2]
[312359054,1705827047114,-217.58022648,0.0003041,2]
[312359055,1705827047123,-415.03975167,0.0003041,2]
[312359056,1705827047132,-1854.73,0.0003041,2]
[312359057,1705827047141,-15825.79,0.0003041,2]
[312359058,1705827047151,-500.0,0.0003041,2]
[312359059,1705827047160,-500.0,0.0003041,2]
[312359060,1705827047169,-500.0,0.0003041,2]
[312359061,1705827047178,-500.0,0.0003041,2]
[312359062,1705827047188,-500.0,0.0003041,2]
[312359063,1705827047196,-706.41,0.0003041,2]
[312359064,1705827047205,-401.95902,0.0003041,2]
[312359065,1705827047215,-1364.99,0.0003041,2]
[312359066,1705827047224,-521.26,0.0003041,2]
[312359067,1705827047233,-500.0,0.0003041,2]
[312359068,1705827047242,-500.0,0.0003041,2]
[312359069,1705827047251,-840.13,0.0003041,2]
[312359070,1705827047260,-702.19,0.0003041,2]
[312359071,1705827047269,-500.0,0.0003041,2]
[312359072,1705827047278,-500.0,0.0003041,2]
[312359073,1705827047287,-500.0,0.0003041,2]
[312359074,1705827047296,-500.0,0.0003041,2]
[312359075,1705827047305,-500.0,0.0003041,2]
[312359076,1705827047314,-913.25,0.0003041,2]
[312359077,1705827047323,-500.0,0.0003041,2]
[312359078,1705827047332,-335.79645869,0.0003041,2]
[312359079,1705827047341,-813.09,0.0003041,2]
[312359080,1705827047351,-1000.0,0.0003041,2]
[312359081,1705827047360,-500.0,0.0003041,2]
[312359082,1705827047370,-775.2,0.0003041,2]
[312359083,1705827047379,-500.0,0.0003041,2]
[312359084,1705827047392,-525.72459261,0.0003041,2]
[312359085,1705827047401,-2486.4,0.0003041,2]
[312359086,1705827047410,-500.0,0.0003041,2]
[312359087,1705827047419,-500.0,0.0003041,2]
[312359088,1705827047428,-462.70107331,0.0003041,2]
[312359089,1705827047439,-396.65358356,0.0003041,2]
[312359090,1705827047449,-1553.93,0.0003041,2]
[312359091,1705827047460,-500.0,0.0003041,2]
[312359092,1705827047471,-423.25178745,0.0003041,2]
[312359093,1705827047482,-992.49,0.0003041,2]
[312359094,1705827047490,-500.0,0.0003041,2]
[312359095,1705827047500,-500.0,0.0003041,2]
[312359096,1705827047509,-500.0,0.0003041,2]
[312359097,1705827047518,-2053.12,0.0003041,2]
[312359098,1705827047528,-610.68850018,0.0003041,2]
[312359099,1705827047538,-1273.02,0.0003041,2]
[312359100,1705827047547,-533.97445114,0.0003041,2]
[312359101,1705827047558,-500.0,0.0003041,2]
[312359102,1705827047569,-663.47,0.0003041,2]
[312359103,1705827047580,-618.33,0.0003041,2]
[312359104,1705827047592,-9222.15,0.0003041,2]
[312359105,1705827047602,-500.17407216,0.0003041,2]
[312359106,1705827047613,-151.0,0.0003041,2]
[312359107,1705827047623,-151.0,0.0003041,2]
[312359108,1705827047632,-151.0,0.0003041,2]
[312359109,1705827047642,-151.0,0.0003041,2]
[312359110,1705827047651,-738.64827177,0.000305,2]
[312359111,1705827047660,-970.61080271,0.00030556,2]
[312359112,1705827047670,-500.0,0.00030684,2]
[312359113,1705827047775,-500.0,0.00030684,2]
[312359114,1705827047786,-500.0,0.00030684,2]
[312359115,1705827047796,-500.0,0.00030684,2]
[312359116,1705827047805,-500.0,0.00030684,2]
[312359117,1705827047815,-500.0,0.00030684,2]
[312359118,1705827047824,-500.0,0.00030684,2]
[312359119,1705827047834,-500.0,0.00030684,2]
[312359120,1705827047843,-150.0,0.00030684,2]
[312359121,1705827047853,-500.0,0.00030684,2]
[312359122,1705827047864,-500.0,0.00030684,2]
[312359123,1705827047875,-679.1,0.00030684,2]
[312359124,1705827047885,-500.0,0.00030684,2]
[312359125,1705827047894,-500.0,0.00030684,2]
[312359126,1705827047905,-500.0,0.00030684,2]
[312359127,1705827047914,-500.96434093,0.00030684,2]
[312359128,1705827047925,-544.8,0.00030684,2]
[312359129,1705827047934,-724.54,0.00030684,2]
[312359130,1705827047943,-500.0,0.00030684,2]
[312359131,1705827047952,-500.0,0.00030684,2]
[312359132,1705827047961,-498.83019286,0.00030684,2]
[312359133,1705827047969,-500.0,0.00030684,2]
[312359134,1705827047979,-500.0,0.00030684,7]
[312359135,1705827047988,-500.0,0.00030684,2]
[312359136,1705827047997,-500.0,0.00030684,2]
[312359137,1705827048007,-500.0,0.00030684,2]
[312359138,1705827048016,-537.13772058,0.00030684,2]
[312359139,1705827048025,-221.60056194,0.00030684,2]
[312359140,1705827048034,-261.70582474,0.00030684,2]
[312359141,1705827048043,-500.0,0.00030684,2]
[312359142,1705827048054,-500.0,0.00030684,2]
[312359143,1705827048065,-1024.7,0.00030684,2]
[312359144,1705827048075,-500.0,0.00030684,2]
[312359145,1705827048085,-500.0,0.00030684,2]
[312359146,1705827048096,-667.93,0.00030684,2]
[312359147,1705827048106,-500.0,0.00030684,2]
[312359148,1705827048117,-500.0,0.00030684,2]
[312359149,1705827048127,-295.9326631,0.00030684,2]
[312359150,1705827048137,-500.0,0.00030684,2]
[312359151,1705827048147,-500.0,0.00030684,2]
[312359152,1705827048156,-1178.69,0.00030684,2]
[312359153,1705827048166,-500.0,0.00030684,2]
[312359154,1705827048174,-500.0,0.00030684,2]
[312359155,1705827048184,-472.17392242,0.00030684,2]
[312359156,1705827048193,-1050.99,0.00030684,2]
[312359157,1705827048202,-500.0,0.00030684,2]
[312359158,1705827048212,-272.94732908,0.00030684,2]
[312359159,1705827048222,-500.0,0.00030684,2]
[312359160,1705827048232,-638.59,0.00030684,2]
[312359161,1705827048241,-500.0,0.00030684,2]
[312359162,1705827048251,-561.16798404,0.00030684,2]
[312359163,1705827048261,-500.0,0.00030684,2]
[312359164,1705827048270,-500.0,0.00030684,2]
[312359165,1705827048279,-500.0,0.00030684,2]
[312359166,1705827048288,-500.0,0.00030684,2]
[312359167,1705827048297,-359.42921145,0.00030684,2]
[312359168,1705827048306,-1075.83,0.00030684,2]
[312359169,1705827048316,-166.04810251,0.00030684,2]
[312359170,1705827048325,-2181.24,0.00030684,2]
[312359171,1705827048334,-500.0,0.00030684,2]
[312359172,1705827048343,-500.0,0.00030684,2]
[312359173,1705827048352,-1099.43,0.00030684,2]
[312359174,1705827048361,-500.0,0.00030684,2]
[312359175,1705827048370,-500.0,0.00030684,2]
[312359176,1705827048380,-500.0,0.00030684,2]
[312359177,1705827048392,-500.31,0.00030684,2]
[312359178,1705827048401,-500.0,0.00030684,2]
[312359179,1705827048410,-425.81095081,0.00030684,2]
[312359180,1705827048419,-2966.89,0.00030684,2]
[312359181,1705827048429,-500.0,0.00030684,2]
[312359182,1705827048438,-500.0,0.00030684,2]
[312359183,1705827048447,-633.68,0.00030684,2]
[312359184,1705827048457,-500.0,0.00030684,2]
[312359185,1705827048467,-500.0,0.00030684,2]
[312359186,1705827048476,-500.0,0.00030684,2]
[312359187,1705827048486,-500.0,0.00030684,2]
[312359188,1705827048496,-500.0,0.00030684,2]
[312359189,1705827048506,-500.0,0.00030684,2]
[312359190,1705827048516,-500.0,0.00030684,2]
[312359191,1705827048526,-500.0,0.00030684,2]
[312359192,1705827048536,-500.0,0.00030684,2]
[312359193,1705827048545,-596.3317369,0.00030684,2]
[312359194,1705827048554,-1166.53,0.00030684,2]
[312359195,1705827048563,-768.2,0.00030684,2]
[312359196,1705827048573,-859.12,0.00030684,2]
[312359197,1705827048584,-1522.55,0.00030684,2]
[312359198,1705827048592,-500.0,0.00030684,2]
[312359199,1705827048601,-500.0,0.00030684,2]
[312359200,1705827048612,-500.0,0.00030684,2]
[312359201,1705827048621,-500.0,0.00030684,2]
[312359202,1705827048630,-500.0,0.00030684,2]
[312359203,1705827048640,-502.39572461,0.00030684,2]
[312359204,1705827048649,-500.0,0.00030684,2]
[312359205,1705827048659,-368.94436176,0.00030684,2]
[312359206,1705827048669,-579.56324903,0.00030684,2]
[312359207,1705827048678,-500.0,0.00030684,2]
[312359208,1705827048687,-500.0,0.00030684,2]
[312359209,1705827048696,-500.0,0.00030684,2]
[312359210,1705827048705,-500.0,0.00030684,2]
[312359211,1705827048715,-500.0,0.00030684,2]
[312359212,1705827048723,-500.0,0.00030684,2]
[312359213,1705827048733,-500.0,0.00030684,2]
[312359214,1705827048744,-500.0,0.00030684,2]
[312359215,1705827048753,-500.0,0.00030684,2]
[312359216,1705827048764,-590.12,0.00030684,2]
[312359217,1705827048773,-1000.0,0.00030684,2]
[312359218,1705827048784,-504.61396894,0.00030684,2]
[312359219,1705827048793,-500.0,0.00030684,2]
[312359220,1705827048802,-500.0,0.00030684,2]
[312359221,1705827048811,-630.44,0.00030684,2]
[312359222,1705827048821,-656.62,0.00030684,2]
[312359223,1705827048831,-1339.82,0.00030684,2]
[312359224,1705827048840,-200.0,0.00030684,2]
[312359225,1705827048850,-500.0,0.00030684,2]
[312359226,1705827048859,-674.92,0.00030684,2]
[312359227,1705827048869,-623.93,0.00030684,2]
[312359228,1705827048878,-475.08982791,0.00030684,2]
[312359229,1705827048886,-527.82,0.00030684,2]
[312359230,1705827048896,-614.55,0.00030684,2]
[312359231,1705827048906,-500.0,0.00030684,2]
[312359232,1705827048916,-500.0,0.00030684,2]
[312359233,1705827048925,-500.0,0.00030684,2]
[312359234,1705827048935,-500.0,0.00030684,14]
[312359235,1705827048945,-500.0,0.00030684,2]
[312359236,1705827048954,-500.0,0.00030684,2]
[312359237,1705827048963,-500.0,0.00030684,2]
[312359238,1705827048972,-500.0,0.00030684,2]
[312359239,1705827048982,-515.04596927,0.00030684,2]
[312359240,1705827048991,-500.0,0.00030684,2]
[312359241,1705827049000,-500.0,0.00030684,2]
[312359242,1705827049010,-500.0,0.00030684,2]
[312359243,1705827049019,-500.0,0.00030684,2]
[312359244,1705827049028,-500.0,0.00030684,2]
[312359245,1705827049037,-848.49,0.00030684,2]
[312359246,1705827049046,-500.0,0.00030684,2]
[312359247,1705827049056,-500.0,0.00030684,2]
[312359248,1705827049064,-500.0,0.00030684,2]
[312359249,1705827049075,-2063.46,0.00030684,2]
[312359250,1705827049084,-500.0,0.00030684,2]
[312359251,1705827049094,-500.0,0.00030684,2]
[312359252,1705827049103,-500.0,0.00030684,2]
[312359253,1705827049112,-27910.08,0.00030684,2]
[312359254,1705827049122,-500.0,0.00030684,2]
[312359255,1705827049131,-500.0,0.00030684,2]
[312359256,1705827049141,-459.32992208,0.00030684,2]
[312359257,1705827049150,-3282.85,0.00030684,2]
[312359258,1705827049159,-500.0,0.00030684,2]
[312359259,1705827049168,-500.0,0.00030684,2]
[312359260,1705827049177,-500.0,0.00030684,2]
[312359261,1705827049187,-264.95436208,0.00030684,2]
[312359262,1705827049198,-500.0,0.00030684,2]
[312359263,1705827049207,-500.0,0.00030684,2]
[312359264,1705827049217,-500.0,0.00030684,2]
[312359265,1705827049226,-569.94,0.00030684,2]
[312359266,1705827049235,-500.0,0.00030684,2]
[312359267,1705827049245,-506.82,0.00030684,2]
[312359268,1705827049253,-500.0,0.00030684,2]
[312359269,1705827049264,-6497.1,0.00030684,2]
[312359270,1705827049273,-500.0,0.00030684,2]
[312359271,1705827049282,-1268.28,0.00030684,2]
[312359272,1705827049292,-500.0,0.00030684,2]
[312359273,1705827049302,-2407.24,0.00030684,2]
[312359274,1705827049313,-500.0,0.00030684,2]
[312359275,1705827049323,-500.0,0.00030684,2]
[312359276,1705827049333,-500.0,0.00030684,2]
[312359277,1705827049343,-500.0,0.00030684,2]
[312359278,1705827049352,-500.0,0.00030684,2]
[312359279,1705827049361,-6246.55,0.00030684,2]
[312359280,1705827049372,-500.0,0.00030684,2]
[312359281,1705827049381,-500.0,0.00030684,2]
[312359282,1705827049392,-500.0,0.00030684,2]
[312359283,1705827049402,-1357.4,0.00030684,2]
[312359284,1705827049411,-661.72,0.00030684,2]
[312359285,1705827049420,-735.3,0.00030684,2]
[312359286,1705827049430,-500.0,0.00030684,2]
[312359287,1705827049439,-8300.67,0.00030684,2]
[312359288,1705827049448,-500.0,0.00030684,2]
[312359289,1705827049457,-500.0,0.00030684,2]
[312359290,1705827049466,-500.0,0.00030684,2]
[312359291,1705827049475,-1502.85,0.00030684,2]
[312359292,1705827049485,-500.0,0.00030684,2]
[312359293,1705827049494,-500.0,0.00030684,2]
[312359294,1705827049503,-8991.16,0.00030684,2]
[312359295,1705827049513,-1228.33,0.00030684,2]
[312359296,1705827049522,-500.0,0.00030684,2]
[312359297,1705827049531,-1296.72,0.00030684,2]
[312359298,1705827049539,-500.0,0.00030684,2]
[312359299,1705827049548,-2208.26,0.00030684,2]
[312359300,1705827049557,-1000.0,0.00030684,2]
[312359301,1705827049567,-500.0,0.00030684,2]
[312359302,1705827049576,-500.0,0.00030684,2]
[312359303,1705827049585,-500.0,0.00030684,2]
[312359304,1705827049594,-500.0,0.00030684,2]
[312359305,1705827049603,-500.0,0.00030684,2]
[312359306,1705827049612,-833.1,0.00030684,2]
[312359307,1705827049622,-1854.73,0.00030684,2]
[312359308,1705827049631,-15825.79,0.00030684,2]
[312359309,1705827049640,-500.0,0.00030684,2]
[312359310,1705827049650,-500.0,0.00030684,2]
[312359311,1705827049659,-500.0,0.00030684,2]
[312359312,1705827049668,-500.0,0.00030684,2]
[312359313,1705827049677,-494.7940667,0.00030684,2]
[312359314,1705827049687,-706.41,0.00030684,2]
[312359315,1705827049696,-1364.99,0.00030684,2]
[312359316,1705827049705,-521.26,0.00030684,2]
[312359317,1705827049714,-500.0,0.00030684,2]
[312359318,1705827049723,-500.0,0.00030684,2]
[312359319,1705827049733,-840.13,0.00030684,2]
[312359320,1705827049742,-702.19,0.00030684,2]
[312359321,1705827049751,-234.44431672,0.00030684,2]
[312359322,1705827049760,-500.0,0.00030684,2]
[312359323,1705827049770,-500.0,0.00030684,2]
[312359324,1705827049781,-500.0,0.00030684,2]
[312359325,1705827049790,-500.0,0.00030684,2]
[312359326,1705827049799,-913.25,0.00030684,2]
[312359327,1705827049808,-500.0,0.00030684,2]
[312359328,1705827049817,-813.09,0.00030684,2]
[312359329,1705827049827,-1000.0,0.00030684,2]
[312359330,1705827049836,-500.0,0.00030684,2]
[312359331,1705827049845,-775.2,0.00030684,2]
[312359332,1705827049854,-500.0,0.00030684,2]
[312359333,1705827049951,-2486.4,0.00030684,2]
[312359334,1705827049961,-500.0,0.00030684,2]
[312359335,1705827049970,-500.0,0.00030684,2]
[312359336,1705827049979,-1553.93,0.00030684,2]
[312359337,1705827049988,-308.79262305,0.00030684,2]
[312359338,1705827049998,-992.49,0.00030684,2]
[312359339,1705827050007,-503.3727828,0.00030684,2]
[312359340,1705827050017,-500.0,0.00030684,2]
[312359341,1705827050026,-500.0,0.00030684,2]
[312359342,1705827050035,-2053.12,0.00030684,2]
[312359343,1705827050045,-1273.02,0.00030684,2]
[312359344,1705827050054,-500.0,0.00030684,2]
[312359345,1705827050063,-663.47,0.00030684,2]
[312359346,1705827050072,-618.33,0.00030684,2]
[312359347,1705827050082,-9222.15,0.00030684,2]
[312359348,1705827050091,-157.894736,0.00030746,2]
[312359349,1705827050100,-151.0,0.00030852,2]
[312359350,1705827050110,-208.89958626,0.00030958,2]
[312359351,1705827050119,-594.71433165,0.00030958,2]
[312359352,1705827050128,-503.33303702,0.00030958,2]
[312359353,1705827050138,-500.0,0.00030958,2]
[312359354,1705827050147,-500.0,0.00030958,2]
[312359355,1705827050156,-500.0,0.00030958,2]
[312359356,1705827050165,-500.0,0.00030958,2]
[312359357,1705827050175,-150.0,0.00030958,2]
[312359358,1705827050184,-500.0,0.00030958,2]
[312359359,1705827050193,-500.0,0.00030958,2]
[312359360,1705827050203,-679.1,0.00030958,2]
[312359361,1705827050213,-459.96835433,0.00030958,2]
[312359362,1705827050222,-500.0,0.00030958,2]
[312359363,1705827050231,-560.41922832,0.00030958,2]
[312359364,1705827050241,-544.8,0.00030958,2]
[312359365,1705827050250,-724.54,0.00030958,2]
[312359366,1705827050260,-500.0,0.00030958,2]
[312359367,1705827050269,-500.0,0.00030958,2]
[312359368,1705827050277,-500.0,0.00030958,2]
[312359369,1705827050287,-500.0,0.00030958,7]
[312359370,1705827050296,-279.40130134,0.00030958,2]
[312359371,1705827050305,-500.0,0.00030958,2]
[312359372,1705827050314,-500.0,0.00030958,2]
[312359373,1705827050323,-500.0,0.00030958,2]
[312359374,1705827050332,-500.0,0.00030958,2]
[312359375,1705827050341,-1024.7,0.00030958,2]
[312359376,1705827050350,-500.0,0.00030958,2]
[312359377,1705827050360,-150.10003198,0.00030958,2]
[312359378,1705827050369,-667.93,0.00030958,2]
[312359379,1705827050378,-500.0,0.00030958,2]
[312359380,1705827050389,-500.0,0.00030958,2]
[312359381,1705827050399,-500.0,0.00030958,2]
[312359382,1705827050409,-500.0,0.00030958,2]
[312359383,1705827050418,-1178.69,0.00030958,2]
[312359384,1705827050428,-437.94230908,0.00030958,2]
[312359385,1705827050437,-500.0,0.00030958,2]
[312359386,1705827050447,-1050.99,0.00030958,2]
[312359387,1705827050456,-500.0,0.00030958,2]
[312359388,1705827050465,-511.9404377,0.00030958,2]
[312359389,1705827050476,-638.59,0.00030958,2]
[312359390,1705827050487,-500.0,0.00030958,2]
[312359391,1705827050496,-500.0,0.00030958,2]
[312359392,1705827050505,-500.0,0.00030958,2]
[312359393,1705827050514,-526.31782774,0.00030958,2]
[312359394,1705827050523,-500.0,0.00030958,2]
[312359395,1705827050532,-1075.83,0.00030958,2]
[312359396,1705827050541,-2181.24,0.00030958,2]
[312359397,1705827050551,-458.1347498,0.00030958,2]
[312359398,1705827050560,-500.0,0.00030958,2]
[312359399,1705827050569,-1099.43,0.00030958,2]
[312359400,1705827050578,-500.0,0.00030958,2]
[312359401,1705827050587,-500.0,0.00030958,2]
[312359402,1705827050595,-500.0,0.00030958,2]
[312359403,1705827050605,-500.31,0.00030958,2]
[312359404,1705827050614,-500.0,0.00030958,2]
[312359405,1705827050624,-2966.89,0.00030958,2]
[312359406,1705827050635,-500.0,0.00030958,2]
[312359407,1705827050644,-500.0,0.00030958,2]
[312359408,1705827050654,-500.0,0.00030958,2]
[312359409,1705827050663,-633.68,0.00030958,2]
[312359410,1705827050672,-500.0,0.00030958,2]
[312359411,1705827050681,-500.0,0.00030958,2]
[312359412,1705827050691,-594.84353903,0.00030958,2]
[312359413,1705827050700,-500.0,0.00030958,2]
[312359414,1705827050709,-500.0,0.00030958,2]
[312359415,1705827050718,-500.0,0.00030958,2]
[312359416,1705827050727,-500.0,0.00030958,2]
[312359417,1705827050736,-1166.53,0.00030958,2]
[312359418,1705827050745,-768.2,0.00030958,2]
[312359419,1705827050755,-859.12,0.00030958,2]
[312359420,1705827050764,-1522.55,0.00030958,2]
[312359421,1705827050774,-500.0,0.00030958,2]
[312359422,1705827050783,-500.0,0.00030958,2]
[312359423,1705827050792,-500.0,0.00030958,2]
[312359424,1705827050801,-500.0,0.00030958,2]
[312359425,1705827050810,-500.0,0.00030958,2]
[312359426,1705827050819,-500.0,0.00030958,2]
[312359427,1705827050829,-500.0,0.00030958,2]
[312359428,1705827050838,-500.0,0.00030958,2]
[312359429,1705827050847,-500.0,0.00030958,2]
[312359430,1705827050856,-500.0,0.00030958,2]
[312359431,1705827050866,-500.0,0.00030958,2]
[312359432,1705827050875,-500.0,0.00030958,2]
[312359433,1705827050884,-500.0,0.00030958,2]
[312359434,1705827050894,-500.0,0.00030958,2]
[312359435,1705827050903,-590.12,0.00030958,2]
[312359436,1705827050913,-1035.93563138,0.00030958,2]
[312359437,1705827050922,-500.0,0.00030958,2]
[312359438,1705827050931,-500.0,0.00030958,2]
[312359439,1705827050941,-630.44,0.00030958,2]
[312359440,1705827050950,-656.62,0.00030958,2]
[312359441,1705827050959,-1339.82,0.00030958,2]
[312359442,1705827050969,-251.86251896,0.00030958,2]
[312359443,1705827050977,-500.0,0.00030958,2]
[312359444,1705827050986,-674.92,0.00030958,2]
[312359445,1705827050995,-623.93,0.00030958,2]
[312359446,1705827051005,-527.82,0.00030958,2]
[312359447,1705827051014,-614.55,0.00030958,2]
[312359448,1705827051023,-500.0,0.00030958,2]
[312359449,1705827051032,-500.0,0.00030958,2]
[312359450,1705827051042,-500.0,0.00030958,14]
[312359451,1705827051051,-500.0,0.00030958,2]
[312359452,1705827051060,-500.0,0.00030958,2]
[312359453,1705827051069,-500.0,0.00030958,2]
[312359454,1705827051079,-500.0,0.00030958,2]
[312359455,1705827051088,-500.0,0.00030958,2]
[312359456,1705827051098,-500.0,0.00030958,2]
[312359457,1705827051107,-346.71546179,0.00030958,2]
[312359458,1705827051116,-500.0,0.00030958,2]
[312359459,1705827051125,-500.0,0.00030958,2]
[312359460,1705827051134,-848.49,0.00030958,2]
[312359461,1705827051143,-500.0,0.00030958,2]
[312359462,1705827051154,-500.0,0.00030958,2]
[312359463,1705827051163,-500.0,0.00030958,2]
[312359464,1705827051172,-2063.46,0.00030958,2]
[312359465,1705827051182,-500.0,0.00030958,2]
[312359466,1705827051191,-500.0,0.00030958,2]
[312359467,1705827051200,-645.0704985,0.00030958,2]
[312359468,1705827051209,-27910.08,0.00030958,2]
[312359469,1705827051219,-500.0,0.00030958,2]
[312359470,1705827051228,-500.0,0.00030958,2]
[312359471,1705827051237,-3282.85,0.00030958,2]
[312359472,1705827051247,-500.0,0.00030958,2]
[312359473,1705827051255,-500.0,0.00030958,2]
[312359474,1705827051266,-500.0,0.00030958,2]
[312359475,1705827051275,-500.0,0.00030958,2]
[312359476,1705827051284,-500.0,0.00030958,2]
[312359477,1705827051293,-500.0,0.00030958,2]
[312359478,1705827051303,-569.94,0.00030958,2]
[312359479,1705827051312,-500.0,0.00030958,2]
[312359480,1705827051321,-506.82,0.00030958,2]
[312359481,1705827051331,-500.0,0.00030958,2]
[312359482,1705827051340,-6497.1,0.00030958,2]